Cogmind - Beta 9.2 @@@ ROGUE MODE // 2019.11.13 @ 15:59:26 Player: arsonius Result: Destroyed by as-41048 with Assembled Maul Performance ------------- Evolutions (0) 0 Regions Visited (2) 400 Robots Destroyed (47) 235 Value Destroyed (912) 912 Prototype IDs (0) 0 Alien Tech Used (0) 0 Bonus (-118) -118 TOTAL SCORE: 1429 Bonus ------- Friendly Fire -118 Cogmind --------- Core Integrity 0/250 Matter 267/300 Energy 250/250 System Corruption 7% Temperature Cool (24) Movement Core (600) Ox11 Location -10/Mines Parts ------- > --- POWER (1) -------- Ion Engine > --- PROPULSION (2) --- (None) > --- UTILITY (2) ------ Medium Storage Unit Large Storage Unit > --- WEAPON (2) ------- Light Cannon Grenade Launcher > --- INVENTORY (14) --- Light Treads Heat Sink Large Storage Unit High-capacity Matter Pod (200) Sensor Array Improved Signal Interpreter Improved Signal Interpreter Improved Terrain Scanner Seismic Analyzer Light Armor Plating Hacking Suite Hacking Suite Mining Laser Peak State ------------ > --- POWER ------------ Light Nuclear Core > --- PROPULSION ------- Light Treads Light Treads > --- UTILITY ---------- Medium Storage Unit Structural Scanner > --- WEAPON ----------- Beam Cannon Light Assault Rifle > --- INVENTORY -------- Ion Engine Heat Sink High-capacity Matter Pod Improved Terrain Scanner Hacking Suite Hacking Suite Light Cannon Grenade Launcher [Rating: 10] Favorites ----------- Power Ion Engine Engine Ion Engine Power Core Light Nuclear Core Propulsion Light Treads Treads Light Treads Utility Medium Storage Unit Device Structural Scanner Storage Medium Storage Unit Processor Transport Network Coupler Weapon Light Cannon Energy Gun Medium Laser Energy Cannon Beam Cannon Ballistic Gun Light Assault Rifle Ballistic Cannon Light Cannon Launcher Grenade Launcher Special Weapon Mining Laser Impact Weapon Hammer Build | -11 -10 -10 ------- Run | Scr Mat Min Slots Evolved . | . . . Power . | . . . Propulsion . | . . . Utility . | . . . Weapon . | . . . Parts Attached 31 | 6 23 2 Power 4 | 1 3 . Engine 3 | 1 2 . Core 1 | . 1 . Reactor . | . . . Propulsion 5 | 2 3 . Treads 5 | 2 3 . Leg . | . . . Wheel . | . . . Hover . | . . . Flight . | . . . Utility 10 | 1 9 . Device 3 | . 3 . Storage 6 | 1 5 . Processor 1 | . 1 . Hackware . | . . . Protection . | . . . Artifact . | . . . Weapon 12 | 2 8 2 Energy Gun 4 | 2 1 1 Energy Cannon 1 | . 1 . Ballistic Gun 2 | . 2 . Ballistic Cannon 2 | . 2 . Launcher 1 | . . 1 Special Weapon 1 | . 1 . Impact Weapon 1 | . 1 . Slashing Weapon . | . . . Piercing Weapon . | . . . Special Melee Weapon . | . . . Unidentified Prototypes . | . . . Parts Lost 8 | . 5 3 Power 2 | . 2 . Propulsion 2 | . . 2 Utility . | . . . Weapon 4 | . 3 1 Highest Loss Streak 3 | . 2 3 Average Slot Usage (%) 97 | . 97 99 Engine 9 | . 8 14 Core 3 | . 4 . Treads 27 | . 28 27 Device 5 | . 6 . Storage 22 | . 20 28 Energy Gun 7 | . 6 9 Energy Cannon 3 | . 4 . Ballistic Gun 5 | . 6 . Ballistic Cannon 9 | . 8 14 Impact Weapon 1 | . . 4 Naked Turns . | . . . Heaviest Build 35 | 13 35 35 Greatest Support 40 | 40 40 40 Greatest Overweight (x) 4 | 4 . . Average Overweight (x) . | . . . Largest Inventory Capacity 14 | 6 14 14 Average Capacity 10 | 5 10 14 Most Carried 14 | 4 14 14 Average Carried 9 | 2 9 13 Final Capacity 14 | 6 14 14 Final Carried 14 | 4 14 13 Class Distribution -------------------- 88% | Mutant 11% | Scavenger-Mutant Dominant Class ---------------- Mutant | -10/Materials Scavenger-Mutant | -10/Mines Resources | -11 -10 -10 ----------- Run | Scr Mat Min Matter Collected 967 | 260 581 126 Remotely . | . . . Salvage Created 1346 | 149 953 244 Parts 82 | 9 58 15 Haulers Intercepted 1 | . 1 . Recyclers Shooed 1 | . . 1 Parts Field Recycled . | . . . Retrieved Matter . | . . . Parts Self-Destructed . | . . . Prevented . | . . . Kills | -11 -10 -10 ------- Run | Scr Mat Min Combat Hostiles Destroyed 33 | . 21 12 Guns 8 | . 7 1 Cannons 19 | . 14 5 AOE 6 | . . 6 Classes Destroyed 11 | 2 6 3 Worker 1 | . 1 . Builder 1 | . . 1 Tunneler 2 | 2 . . Hauler 1 | . 1 . Recycler 3 | 1 1 1 Operator 2 | . 2 . Watcher 3 | . 3 . Swarmer 6 | . 3 3 Grunt 20 | . 18 2 Assembled 7 | . . 7 Guerrilla 1 | . . 1 Best Kill Streak 8 | 2 7 8 Combat Bots Only 7 | . 6 7 Max Kills in Single Turn 6 | 1 2 6 Gunslinging . | . . . Exploded 4 | . . 4 Melee . | . . . Uniques/NPCs Destroyed . | . . . Combat | -11 -10 -10 -------- Run | Scr Mat Min Damage Taken 1707 | . 1136 571 Core 259 | . 132 127 Absorbed by Shields . | . . . Core Remaining (%) 100 | 100 . . Volleys Fired 111 | 12 80 19 Largest 2 | 1 2 2 Hottest 100 | 40 95 100 Shots Fired 171 | 12 136 23 Gun 87 | 12 73 2 Cannon 82 | . 63 19 Launcher 2 | . . 2 Special . | . . . Kinetic 78 | . 59 19 Thermal 58 | . 56 2 Explosive 2 | . . 2 Electromagnetic 33 | 12 21 . Robot Hit Streak 14 | 4 14 7 Robot Miss Streak 4 | 1 4 2 Penetration Max . | . . . Secondary Targets 2 | . 2 . Max Gunslinging Chain 1 | . 1 . Shots Hit Robots 113 | 9 89 15 Core Hits 73 | 4 41 28 Critical Hits . | . . . Critical Kills . | . . . Critical Parts Destroyed . | . . . Melee Attacks . | . . . Impact . | . . . Slashing . | . . . Piercing . | . . . Sneak Attacks . | . . . Combat Hostiles . | . . . Follow-up Attacks . | . . . Damage Inflicted 2258 | 114 1530 614 Guns 773 | 114 626 33 Cannons 985 | . 793 192 Explosions 500 | . 111 389 Melee . | . . . Ramming . | . . . Kinetic 760 | . 568 192 Thermal 769 | . 736 33 Explosive 389 | . . 389 Electromagnetic 340 | 114 226 . Impact . | . . . Slashing . | . . . Piercing . | . . . Highest Corruption 7 | . . 7 Average Corruption 5 | . . 5 Corruption Purged . | . . . Overload Shots . | . . . Overflow Damage 7 | . 7 . Projectiles 7 | . 7 . Explosions . | . . . Melee . | . . . Knockbacks 13 | . 11 2 Impact . | . . . Kinetic 11 | . 9 2 Secondary 2 | . 2 . Self-Inflicted Damage 70 | . 26 44 Shots 3 | . 1 2 Rammed . | . . . Targets Rammed . | . . . Kicked . | . . . Crushed . | . . . Highest Temperature 288 | . 288 40 Average Temperature 88 | . 94 16 Received Heat Transfer 495 | . 459 36 Siege Activations . | . . . Robots Corrupted . | . . . Combat Hostiles . | . . . Parts Fried . | . . . Impact Corruptions . | . . . Robots Melted . | . . . Combat Hostiles . | . . . Parts Melted 1 | . . 1 Heat Transferred 1815 | . 1741 74 Parts Sabotaged . | . . . Parts Stolen . | . . . Parts Stripped . | . . . Power Chain Reactions 2 | . 2 . Missiles Intercepted . | . . . Alert | -11 -10 -10 ------- Run | Scr Mat Min Peak Influence 269 | 15 269 199 Average Influence 114 | 6 108 172 Maximum Alert Level 1 | . 1 . Low Security (%) 93 | 100 91 100 Level 1 6 | . 8 . Level 2 . | . . . Level 3 . | . . . Level 4 . | . . . Level 5 . | . . . High Security . | . . . Max Security . | . . . Squads Dispatched 6 | . 6 . Investigation 4 | . 4 . Extermination . | . . . Reinforcement 2 | . 2 . Assault . | . . . Garrison . | . . . Intercept . | . . . Construction Impeded . | . . . Haulers Reinforced . | . . . Stealth | -11 -10 -10 --------- Run | Scr Mat Min Distress Signals 2 | . 2 . Communications Jammed . | . . . Distress Signals . | . . . Times Spotted 52 | . 37 15 Peak Tracking Total 10 | . 6 10 Tactical Retreats 1 | . 1 . Traps | -11 -10 -10 ------- Run | Scr Mat Min Traps Triggered 2 | . 2 . Indirectly . | . . . Trap Hack Attempts . | . . . Triggered . | . . . Disarmed . | . . . Reprogrammed . | . . . Reused . | . . . Traps Extracted . | . . . Installed . | . . . Triggered . | . . . Machines | -11 -10 -10 ---------- Run | Scr Mat Min Machines Disabled . | . . . Max in Single Turn . | . . . Machines Sabotaged . | . . . Garrisons Compromised . | . . . Overloaded Fab Kills . | . . . Fab Network Shutdowns . | . . . Hacking | -11 -10 -10 --------- Run | Scr Mat Min Machines Accessed 6 | . 6 . Terminals 6 | . 6 . Fabricators . | . . . Repair Stations . | . . . Recycling Units . | . . . Scanalyzers . | . . . Garrison Access . | . . . Total Hacks 24 | . 24 . Successful 11 | . 11 . Failed 12 | . 12 . Catastrophic 1 | . 1 . Database Lockouts 1 | . 1 . Manual 6 | . 6 . Terminals 24 | . 24 . Fabricators . | . . . Repair Stations . | . . . Recycling Units . | . . . Scanalyzers . | . . . Garrison Access . | . . . Terminal Hacks 11 | . 11 . Part Schematic 1 | . 1 . Robot Analysis 3 | . 3 . Terminal Index 1 | . 1 . Locate Traps 3 | . 3 . Dispatch Records 1 | . 1 . Registered Components 1 | . 1 . Registered Prototypes 1 | . 1 . Fabricator Hacks . | . . . Repair Station Hacks . | . . . Recycling Unit Hacks . | . . . Scanalyzer . | . . . Garrison Access Hacks . | . . . Unauthorized Hacks . | . . . Terminals . | . . . Fabricators . | . . . Repair Stations . | . . . Recycling Units . | . . . Scanalyzers . | . . . Garrison Access . | . . . Data Cores Recovered . | . . . Used . | . . . Hacking Detections 5 | . 5 . Full Trace Events 1 | . 1 . Feedback Events . | . . . Feedback Blocked . | . . . Robot Schematics Acquired . | . . . Robots Built . | . . . Matter . | . . . Time . | . . . Total Robot Build Rating . | . . . Part Schematics Acquired 1 | . 1 . Parts Built . | . . . Matter . | . . . Time . | . . . Total Part Build Rating . | . . . Parts Repaired . | . . . Time . | . . . Parts Recycled . | . . . Recycled Matter . | . . . Retrieved Matter . | . . . Retrieved Components . | . . . Parts Scanalyzed . | . . . Part Schematics Acquired . | . . . Parts Damaged . | . . . Bothacking | -11 -10 -10 ------------ Run | Scr Mat Min Used RIF Installer . | . . . Robots Hacked . | . . . Non-combat . | . . . Combat . | . . . Robot Hacks Applied . | . . . Relay Couplers Released . | . . . Robots Rewired . | . . . Allies Hacked . | . . . Hacks Repelled . | . . . Allies | -11 -10 -10 -------- Run | Scr Mat Min Total Allies . | . . . Largest Group . | . . . Highest-Rated Group . | . . . Highest-Rated Ally . | . . . Total Orders . | . . . Ally Attacks . | . . . Total Damage . | . . . Kills . | . . . Allies Corrupted . | . . . Allies Melted . | . . . Intel | -11 -10 -10 ------- Run | Scr Mat Min Robot Analysis Total 3 | . 3 . Derelict Logs Recovered . | . . . Drone Launches . | . . . Drone Recoveries . | . . . Exploration | -11 -10 -10 ------------- Run | Scr Mat Min Turns Passed 2320 | 108 1809 403 Spaces Moved 1190 | 47 922 221 Core 20 | 20 . . Treads 1170 | 27 922 221 Legs . | . . . Wheels . | . . . Hover . | . . . Flight . | . . . Fastest Speed 50 | 50 160 160 Average Speed 159 | 136 160 160 Slowest Speed 250 | 250 160 160 Overloaded Moves . | . . . Propulsion Burnouts . | . . . Robots Hopped . | . . . Cave-ins Triggered . | . . . Exploration Rate (%) 50 | 4 99 48 Regions Visited 2 Branch Regions 1 Pre-discovered Areas . | . . . Known Exits Taken . | . . . Unknown Exits Taken 2 | 1 1 . Scrap Searched . | . . . Spaces Dug . | . . . Terrain Destroyed 22 | . 8 14 Melee . | . . . Projectile . | . . . AOE 22 | . 8 14 Actions | -11 -10 -10 --------- Run | Scr Mat Min Total 1456 | 78 1129 249 Wait 59 | 5 48 6 Move 1188 | 46 921 221 Hop . | . . . Pick Up 42 | 9 33 . Fast Attach 7 | 1 5 1 Attach 14 | 5 8 1 Detach . | . . . Swap 10 | . 10 . Drop 25 | . 24 1 Fire 111 | 12 80 19 Melee . | . . . Ram . | . . . Kick . | . . . Crush . | . . . Escape Stasis . | . . . Rewire . | . . . Trap . | . . . Miscellaneous . | . . . Route ------- -11/Scrapyard -10/Materials (discovered 5 exits: [*Mat x3] / [*Min x2]) -10/Mines History --------- Turn | Location | Event 8 | -11/Scrapyard | Discovered new exit (range 14) 109 | -11/Scrapyard | Entered Materials 210 | -10/Materials | Central database locked down 317 | -10/Materials | Build established: Mutant 437 | -10/Materials | Discovered new exit (range 16) 736 | -10/Materials | Discovered new exit (range 16) 1076 | -10/Materials | Discovered new exit (range 5) 1565 | -10/Materials | Core integrity fell below 50% 1593 | -10/Materials | Discovered new exit (range 15) 1639 | -10/Materials | Discovered new exit (range 15) 1918 | -10/Materials | Entered Mines 2298 | -10/Mines | Assembled infested the area 2303 | -10/Mines | Assisted by a Guerilla fighting off Assembled 2321 | -10/Mines | Core integrity fell below 20% 2321 | -10/Mines | Destroyed by as-41048 with Assembled Maul Last Messages --------------- they're closing on this area, come on!" 02306_ 9Y-T0L(h): "I'll hold them off! Go on ahead or try to find another way!" 02306_ HV Slug penetrates as-96081. 02306_ HV Slug penetrates Wall. 02313_ as-03683 destroyed. 02314_ Particle Gun destroyed. 02314_ System corrupted by crushing effect (+2). 02315_ Lgt. Treads destroyed. 02315_ System corrupted by crushing effect (+4). 02317_ as-00320 destroyed. 02317_ as-88564 destroyed. 02317_ as-96081 destroyed. 02317_ as-72528 destroyed. 02317_ U-05 Engineer destroyed. 02317_ Fission Core melted. 02317_ 9Y-T0L(h) destroyed. 02318_ Lgt. Treads destroyed. 02318_ System corrupted by crushing effect (+1). 02320_ as-22078 destroyed. 02320_ as-24984 destroyed. Map ----- +----------------------------------------------------+ | ?????????????????????????????????????????? | | ?????????????????????????????????????????? | | ?????????????????????????????????????????? | | ?????????????????????????????????????????? | | ?????????????????????????????????????????? | | ?????????????????????????????????????????? | | ?????????????????????????????????????????? | | ?????????????????????????????????????????? | | ?????????????????????????????????????????? | | ?????????????????????????????????????????? | | ???????????????????????????????????######? | | ??????????????????????????????????## ## | | ?????????????????????????????????## # | | ???????? ???????????????????###### # | | ????????? ??????????????????# | | ????????? ##????????????????# ## # | | ?????????? ?????????????### ### #### | | ??????????? ???????????### #?### #??? | | ??????????## ?????????## #???# #??? | | ??????????#; ###??????# ##??# #### | | ??????????#; ##???## ##?# # | | ??????????## ##??# #?##### # | | ??????????# a % #??# #?????# # | | ?????????## #?## #????## | | ??????# # a ### #????# | | ??????# a@| #????# | | ?????# = ##????# | | ????# ##### % ###?????# | | ????# ???????#### ##???????## | | ????#??????????????## ##?????????### | | ???????????????????## ##????????????? | | ???????????????????# ##?????????????? | | ???????????????????# ####??????????????? | | ???????????????????## ##?????????????????? | | ????????????????????###??????????????????? | | ?????????????????????????????????????????? | | ?????????????????????????????????????????? | | ?????????????????????????????????????????? | | ?????????????????????????????????????????? | | ?????????????????????????????????????????? | | ?????????????????????????????????????????? | | ?????????????????????????????????????????? | | ?????????????????????????????????????????? | | ?????????????????????????????????????????? | | ?????????????????????????????????????????? | | ?????????????????????????????????????????? | | ?????????????????????????????????????????? | | ?????????????????????????????????????????? | | ?????????????????????????????????????????? | | ?????????????????????????????????????????? | +----------------------------------------------------+ Best States ------------- Heat Dissipation 35 Energy Generation 14 Energy Capacity 250 Matter Stores 300 Matter Capacity 300 Sight Range 16 Terrain Scan Density 10 Evasion (%) 50 Recoil Reduction 2 Item Schematics ----------------- Signal Interpreter | -10/Materials | Hacked Robot Schematics ------------------ None Fabricated ------------ Nothing Alien Tech Used ----------------- None Achievements -------------- None Challenges ------------ None Game ------ Seed AutogunDerelictTorch Manual? 0 Play Time 00:34:07 Cumulative 59.3 hours Start 2019.11.13 @ 15:17:44 End 2019.11.13 @ 15:59:26 Sessions 1 Manual Loads 0 Difficulty Rogue Special Mode None Game No. 20 Rogue 20 Adventurer 0 Explorer 0 Win Type - Total 0 Types 0/0/0/0/0/0/0 Lore% 33 Gallery% 53 Achievement% 33 Wizard Run 0 Options --------- ASCII 1 Keyboard 0 Movement Numpad Keybinds 0 Fullscreen 1 Font 12/Smallcaps Map View 83x54 Tactical HUD 1 Map Filters NONE Filters NONE Steam 1 RUN: 28b9a5ee-9c24-46b3-b284-ccefd7f02579